bitfinex/quotes_BTCUSD_20241027
["timestamp","ask_amount","ask_price","bid_price","bid_amount"]
[1730047733410,0.097084,67800.0,67799.0,0.0095183]
[1730047733676,0.097084,67800.0,67799.0,0.1570123]
[1730047733888,0.097084,67800.0,67799.0,0.147494]
[1730047734163,0.097084,67800.0,67799.0,0.1570123]
[1730047736469,0.097084,67800.0,67799.0,0.0095183]
[1730047736693,0.097084,67800.0,67799.0,0.1570123]
[1730047738034,0.097084,67800.0,67799.0,0.0095183]
[1730047738272,0.18960379,67800.0,67799.0,0.0095183]
[1730047738608,0.18850379,67800.0,67797.0,0.04491205]
[1730047738833,0.66972179,67801.0,67797.0,0.000822]
[1730047739054,0.09251979,67798.0,67797.0,0.000822]
[1730047740945,0.76224158,67801.0,67797.0,0.148321]
[1730047741897,0.0943,67800.0,67797.0,0.148321]
[1730047742123,0.0943,67800.0,67797.0,0.000822]
[1730047742378,0.0943,67800.0,67797.0,0.14832]
[1730047742821,0.0943,67800.0,67797.0,0.000822]
[1730047743508,0.0943,67800.0,67797.0,0.148321]
[1730047743995,0.0943,67800.0,67797.0,0.295819]
[1730047744483,0.0943,67800.0,67799.0,0.147494]
[1730047744925,0.0943,67800.0,67797.0,0.48743511]
[1730047745145,0.0943,67800.0,67798.0,0.147495]
[1730047745371,0.0943,67800.0,67798.0,0.19161411]
[1730047745859,0.0943,67800.0,67799.0,0.147494]
[1730047746378,0.0943,67800.0,67798.0,0.04411911]
[1730047746613,0.0943,67800.0,67798.0,0.19161411]
[1730047747319,0.0943,67800.0,67799.0,0.147494]
[1730047747553,0.0943,67800.0,67799.0,0.19161311]
[1730047747770,0.0943,67800.0,67799.0,0.147494]
[1730047748009,0.0943,67800.0,67799.0,0.1570147]
[1730047748240,0.0943,67800.0,67799.0,0.0095207]
[1730047748470,0.0943,67800.0,67799.0,0.1570147]
[1730047748915,0.0943,67800.0,67799.0,0.0095207]
[1730047749142,0.0943,67800.0,67799.0,0.1726512]
[1730047749367,0.0943,67800.0,67799.0,0.1631305]
[1730047749628,0.0943,67800.0,67799.0,0.171194]
[1730047749872,0.39429581,67800.0,67799.0,0.07436233]
[1730047750116,0.47219581,67800.0,67799.0,0.0080635]
[1730047750367,0.149496,67798.0,67797.0,0.000822]
[1730047750603,0.68523939,67798.0,67797.0,0.000822]
[1730047750834,0.5927196,67798.0,67797.0,0.000822]
[1730047753639,0.78523939,67798.0,67797.0,0.000822]
[1730047753865,0.6927196,67798.0,67797.0,0.000822]
[1730047755212,0.79223939,67798.0,67797.0,0.000822]
[1730047755430,0.79523939,67798.0,67797.0,0.000822]
[1730047757216,0.81977341,67798.0,67797.0,0.000822]
[1730047757703,0.79523939,67798.0,67797.0,0.000822]
[1730047757903,0.79523939,67798.0,67780.0,0.06713914]
[1730047757904,0.147531,67782.0,67781.0,0.04421143]
[1730047758117,0.147533,67781.0,67780.0,0.000822]
[1730047758354,0.29803681,67781.0,67780.0,0.000822]
[1730047760756,0.15050381,67781.0,67780.0,0.000822]
[1730047760987,0.29803681,67781.0,67780.0,0.000822]
[1730047761224,0.15050381,67781.0,67780.0,0.000822]
[1730047761625,0.2430236,67781.0,67780.0,0.000822]
[1730047763733,0.3905566,67781.0,67780.0,0.000822]
[1730047763979,0.2430236,67781.0,67780.0,0.01203212]
[1730047764203,0.2430236,67781.0,67780.0,0.000822]
[1730047764435,0.2430236,67781.0,67780.0,0.01203212]
[1730047764649,0.2430236,67781.0,67780.0,0.000822]
[1730047764861,0.2430236,67781.0,67780.0,0.01203212]
[1730047765074,0.2430236,67781.0,67780.0,0.000822]
[1730047765299,0.2430236,67781.0,67780.0,0.01203212]
[1730047765520,0.2430236,67781.0,67780.0,0.000822]
[1730047765758,0.2430236,67781.0,67780.0,0.01203212]
[1730047765984,0.2430236,67781.0,67780.0,0.000822]
[1730047766230,0.2430236,67781.0,67780.0,0.01203212]
[1730047766453,0.2430236,67781.0,67780.0,0.000822]
[1730047766711,0.2430236,67781.0,67780.0,0.01203212]
[1730047766947,0.002,67781.0,67780.0,0.148358]
[1730047767171,0.09451979,67782.0,67781.0,0.147533]
[1730047767619,0.09251979,67782.0,67781.0,0.15877288]
[1730047768071,0.09451979,67782.0,67781.0,0.01123988]
[1730047772703,0.09251979,67782.0,67781.0,0.01123988]
[1730047773822,0.09251979,67782.0,67781.0,0.15877288]
[1730047774060,0.09451979,67786.0,67785.0,0.147525]
[1730047774291,0.09451979,67786.0,67784.0,0.147527]
[1730047774515,0.09451979,67786.0,67785.0,0.01123569]
[1730047775437,0.09951979,67786.0,67785.0,0.01123569]
[1730047775660,0.09951979,67786.0,67781.0,0.148355]
[1730047775874,0.09251979,67782.0,67781.0,0.148355]
[1730047776312,0.09251979,67782.0,67781.0,0.15959488]
[1730047777693,0.09251979,67782.0,67781.0,0.01206188]
[1730047777897,0.09251979,67782.0,67781.0,0.15959488]
[1730047778104,0.09251979,67782.0,67781.0,0.01206188]
[1730047780106,0.147526,67785.0,67781.0,0.01206188]
[1730047780107,0.147526,67785.0,67782.0,0.09748021]
[1730047780310,0.007,67786.0,67782.0,0.09748021]
[1730047780539,0.302048,67786.0,67783.0,0.01121289]
[1730047780772,0.147525,67785.0,67783.0,0.01121289]
[1730047781008,0.149526,67785.0,67783.0,0.01121289]
[1730047781901,0.09251979,67784.0,67783.0,0.01121289]
[1730047782626,0.09451979,67784.0,67783.0,0.01121289]
[1730047782851,0.4903506,67784.0,67783.0,0.01121289]
[1730047783080,0.4903506,67784.0,67782.0,0.09748021]
[1730047783081,0.002,67783.0,67782.0,0.09748021]
[1730047783345,0.149529,67783.0,67782.0,0.09748021]
[1730047783821,0.30003281,67783.0,67782.0,0.09748021]
[1730047784266,0.47983281,67783.0,67782.0,0.09748021]
[1730047790861,0.39783281,67783.0,67782.0,0.09748021]
[1730047791996,0.30003281,67783.0,67782.0,0.09748021]
[1730047792387,0.30003281,67783.0,67782.0,0.11000569]
[1730047794411,0.15250381,67783.0,67782.0,0.11000569]
[1730047794632,0.30003281,67783.0,67782.0,0.11000569]
[1730047794853,0.15250381,67783.0,67782.0,0.11000569]
[1730047795319,0.2450236,67783.0,67782.0,0.11000569]
[1730047795544,0.3925526,67783.0,67782.0,0.11000569]
[1730047797437,0.3925526,67783.0,67782.0,0.15414234]
[1730047797887,0.3925526,67783.0,67782.0,0.15496434]
[1730047798119,0.3941966,67783.0,67782.0,0.15496434]
[1730047799262,0.2466676,67783.0,67782.0,0.15496434]
[1730047799476,0.3941966,67783.0,67782.0,0.15496434]
[1730047800174,0.3941966,67783.0,67782.0,0.11082769]
[1730047800400,0.3941966,67783.0,67782.0,0.15496434]
[1730047801087,0.2466676,67783.0,67782.0,0.15509001]
[1730047801350,0.003644,67783.0,67782.0,0.25835869]
[1730047801584,0.003644,67783.0,67782.0,0.32475218]
[1730047801816,0.003644,67783.0,67782.0,0.42175507]
[1730047802754,0.003644,67783.0,67782.0,0.51027972]
[1730047803657,0.003644,67783.0,67782.0,0.36274872]
[1730047803882,0.003644,67783.0,67782.0,0.51027972]
[1730047805219,0.003644,67783.0,67782.0,0.36274872]
[1730047805660,0.003644,67783.0,67782.0,0.36276949]
[1730047807082,0.39177681,67783.0,67782.0,0.27423538]
[1730047807302,0.39177681,67783.0,67782.0,0.11082769]
[1730047807595,0.39177681,67783.0,67782.0,0.1550987]
[1730047807811,0.41977681,67783.0,67782.0,0.11082769]
[1730047808250,0.41977681,67783.0,67782.0,0.09830221]
[1730047810687,0.52177681,67783.0,67782.0,0.09830221]
[1730047810896,0.6242966,67783.0,67782.0,0.09830221]
[1730047811119,0.6222966,67783.0,67782.0,0.09830221]
[1730047811360,0.52977681,67783.0,67782.0,0.09830221]
[1730047812678,0.6222966,67783.0,67782.0,0.09830221]
[1730047812888,0.6242966,67783.0,67782.0,0.09830221]
[1730047813332,0.6222966,67783.0,67782.0,0.09830221]
[1730047814214,0.52977681,67783.0,67782.0,0.09830221]
[1730047814665,0.6222966,67783.0,67782.0,0.09830221]
[1730047815603,0.6242966,67783.0,67782.0,0.09830221]
[1730047816078,0.6222966,67783.0,67782.0,0.09830221]
[1730047819145,0.52977681,67783.0,67782.0,0.09830221]
[1730047819588,0.6222966,67783.0,67782.0,0.09830221]
[1730047821051,0.52977681,67783.0,67782.0,0.09830221]
[1730047821726,0.6222966,67783.0,67782.0,0.09830221]
[1730047822680,0.52977681,67783.0,67782.0,0.09830221]
[1730047823565,0.6222966,67783.0,67782.0,0.09830221]
[1730047823781,0.52977681,67783.0,67782.0,0.09830221]
[1730047824249,0.6222966,67783.0,67782.0,0.09830221]
[1730047826618,0.6242966,67783.0,67782.0,0.09830221]
[1730047826858,0.6222966,67783.0,67782.0,0.09830221]
[1730047827064,0.67346931,67783.0,67782.0,0.09830221]
[1730047827291,0.72960302,67783.0,67782.0,0.09830221]
[1730047827719,0.72760302,67783.0,67782.0,0.09830221]
[1730047827940,0.67146931,67783.0,67782.0,0.09830221]
[1730047828210,0.6222966,67783.0,67782.0,0.09830221]
[1730047829310,0.73204283,67783.0,67782.0,0.09830221]
[1730047831703,0.75515405,67783.0,67782.0,0.09830221]
[1730047832572,0.75715405,67783.0,67782.0,0.09830221]
[1730047832791,0.75515405,67783.0,67782.0,0.09830221]
[1730047833487,0.75715405,67783.0,67782.0,0.09830221]
[1730047834147,0.75515405,67783.0,67782.0,0.09830221]
[1730047835235,0.75715405,67783.0,67782.0,0.09830221]
[1730047836999,0.75515405,67783.0,67782.0,0.09830221]
[1730047838853,0.55288803,67783.0,67782.0,0.09830221]
[1730047839069,0.55530782,67783.0,67782.0,0.09830221]
[1730047842601,0.55030782,67783.0,67782.0,0.09830221]
[1730047842824,0.55030782,67783.0,67782.0,0.17900221]
[1730047843270,0.55530782,67783.0,67782.0,0.17900221]
[1730047845433,0.55030782,67783.0,67782.0,0.17900221]
[1730047845656,0.55252149,67783.0,67782.0,0.17900221]
[1730047846553,0.54252149,67783.0,67782.0,0.17900221]
[1730047848561,0.54252149,67783.0,67782.0,0.26900221]
[1730047855277,0.51952149,67783.0,67782.0,0.26900221]
[1730047855497,0.54252149,67783.0,67782.0,0.26900221]
[1730047856656,0.54416549,67783.0,67782.0,0.26900221]
[1730047857103,0.4516457,67783.0,67782.0,0.26900221]
[1730047857326,0.54416549,67783.0,67782.0,0.26900221]
[1730047858034,0.4516457,67783.0,67782.0,0.26900221]
[1730047858258,0.54416549,67783.0,67782.0,0.26900221]
[1730047860718,0.54416549,67783.0,67782.0,0.17900221]
[1730047861827,0.52105427,67783.0,67782.0,0.17900221]
[1730047863430,0.49805427,67783.0,67782.0,0.17900221]
[1730047863643,0.49305427,67783.0,67782.0,0.17900221]
[1730047863857,0.34255046,67783.0,67782.0,0.19107403]
[1730047864072,0.34255046,67783.0,67782.0,0.29017403]
[1730047864293,0.00585767,67783.0,67782.0,0.29017403]
[1730047864739,0.15338667,67783.0,67782.0,0.29017403]
[1730047865436,0.00585767,67783.0,67782.0,0.29017403]
[1730047866815,0.15338667,67783.0,67782.0,0.29017403]
[1730047867454,0.15338667,67783.0,67782.0,0.33441226]
[1730047867657,0.00585767,67783.0,67782.0,0.29017403]
[1730047871296,0.00385767,67783.0,67782.0,0.48191337]
[1730047871538,0.00385767,67783.0,67782.0,0.43770503]
[1730047871735,0.00385767,67783.0,67782.0,0.66721696]
[1730047871986,0.00385767,67783.0,67782.0,0.50406237]
[1730047872206,0.00385767,67783.0,67782.0,0.50400288]
[1730047872430,0.00385767,67783.0,67782.0,0.43770503]
[1730047873383,0.00385767,67783.0,67782.0,0.48188825]
[1730047873604,0.00385767,67783.0,67782.0,0.43770503]
[1730047874454,0.00385767,67783.0,67782.0,0.48188216]
[1730047874667,0.00385767,67783.0,67782.0,0.43770503]
[1730047875348,0.00385767,67783.0,67782.0,0.48187698]
[1730047876935,0.00385767,67783.0,67782.0,0.48187378]
[1730047878470,0.00385767,67783.0,67782.0,0.43770503]
[1730047878690,0.00385767,67783.0,67782.0,0.48187378]
[1730047879144,0.00385767,67783.0,67782.0,0.43770503]
[1730047879420,0.00385767,67783.0,67782.0,0.50395816]
[1730047879647,0.00385767,67783.0,67782.0,0.43770503]
[1730047879855,0.00385767,67783.0,67782.0,0.68902873]
[1730047881180,0.00385767,67783.0,67782.0,0.43770503]
[1730047882186,0.00385767,67783.0,67782.0,0.68904448]
[1730047883427,0.00385767,67783.0,67782.0,0.60072204]
[1730047884135,0.00385767,67783.0,67782.0,0.48186748]
[1730047884373,0.00385767,67783.0,67782.0,0.19107403]
[1730047884610,0.00385767,67783.0,67782.0,0.33860503]
[1730047885084,0.24590646,67783.0,67782.0,0.11037403]
[1730047885297,0.003644,67783.0,67782.0,0.25790503]
[1730047886036,0.003644,67783.0,67782.0,0.11037403]
[1730047889799,0.151173,67783.0,67782.0,0.11037403]
[1730047897192,0.003644,67783.0,67782.0,0.11037403]
[1730047899211,0.151173,67783.0,67782.0,0.11037403]
[1730047899856,0.003644,67783.0,67782.0,0.11037403]
[1730047900470,0.151173,67783.0,67782.0,0.11037403]
[1730047901346,0.30167681,67783.0,67782.0,0.09830221]
[1730047901535,0.30167681,67783.0,67782.0,0.1097922]
[1730047901658,0.30167681,67783.0,67782.0,0.09830221]
[1730047903006,0.30167681,67783.0,67782.0,0.10979924]
[1730047903450,0.30167681,67783.0,67782.0,0.09830221]
[1730047903682,0.30167681,67783.0,67782.0,0.1098015]
[1730047904812,0.003644,67783.0,67782.0,0.2573325]
[1730047905047,0.003644,67783.0,67782.0,0.3376325]
[1730047906073,0.003644,67783.0,67782.0,0.1901015]
[1730047907465,0.003644,67783.0,67782.0,0.23433517]
[1730047908777,0.003644,67783.0,67782.0,0.38186617]
[1730047908989,0.003644,67783.0,67782.0,0.23433517]
[1730047909223,0.003644,67783.0,67782.0,0.3376325]
[1730047909459,0.003644,67783.0,67782.0,0.5673583]
[1730047910589,0.003644,67783.0,67782.0,0.50100779]
[1730047910834,0.001644,67783.0,67782.0,0.67987514]
[1730047911029,0.001644,67783.0,67782.0,0.59140779]
[1730047918756,0.001644,67783.0,67782.0,0.5913523]
[1730047922175,0.001644,67783.0,67782.0,0.59134087]
[1730047923298,0.001644,67783.0,67782.0,0.68386066]
[1730047923554,0.001644,67783.0,67782.0,1.04521283]
[1730047923813,0.00221304,67793.0,67782.0,0.94205238]
[1730047924055,0.00221304,67793.0,67792.0,0.43228904]
[1730047924292,0.00221304,67793.0,67792.0,0.48501837]
[1730047924539,0.00221304,67793.0,67792.0,0.49437261]
[1730047931570,0.00221304,67793.0,67792.0,0.4940106]
[1730047936207,0.00221304,67793.0,67792.0,0.33106424]
[1730047936433,0.00221304,67793.0,67792.0,0.49388488]
[1730047938031,0.00221304,67793.0,67792.0,0.49385855]
[1730047938950,0.001644,67797.0,67796.0,0.31742079]
[1730047939189,0.001644,67797.0,67796.0,0.54636264]
[1730047939402,0.001644,67797.0,67796.0,0.55567675]
[1730047940719,0.001644,67797.0,67796.0,0.39288244]
[1730047940987,0.001644,67797.0,67796.0,0.55565406]
[1730047941205,0.001644,67797.0,67796.0,0.39288244]
[1730047941418,0.001644,67797.0,67796.0,0.55565561]
[1730047941634,0.001644,67797.0,67796.0,0.39288244]
[1730047942088,0.001644,67797.0,67796.0,0.55565103]
[1730047942308,0.001644,67797.0,67796.0,0.3267349]
[1730047942536,0.001644,67797.0,67796.0,0.39287579]
[1730047942746,0.001644,67797.0,67796.0,0.300356]
[1730047943177,0.001644,67797.0,67796.0,0.23421511]
[1730047944470,0.001644,67797.0,67796.0,0.30035885]
[1730047944679,0.001644,67797.0,67796.0,0.23421511]
[1730047945136,0.001644,67797.0,67796.0,0.39287864]
[1730047945578,0.001644,67797.0,67796.0,0.55565903]
[1730047946743,0.001644,67797.0,67796.0,0.57771514]
[1730047947199,0.001644,67797.0,67796.0,0.57771488]
[1730047947416,0.001644,67797.0,67796.0,0.48519509]
[1730047947630,0.001644,67797.0,67796.0,0.39699914]
[1730047947859,0.001644,67797.0,67796.0,0.48520131]
[1730047948095,0.001644,67797.0,67796.0,0.39699914]
[1730047948576,0.001644,67797.0,67796.0,0.31959914]
[1730047948801,0.001644,67797.0,67796.0,0.40780757]
[1730047949699,0.001644,67797.0,67796.0,0.00931411]
[1730047949700,0.09616379,67797.0,67796.0,0.00931411]
[1730047949927,0.003644,67797.0,67796.0,0.0534271]
[1730047950151,0.003644,67797.0,67793.0,0.147507]
[1730047950362,0.003644,67797.0,67796.0,0.00931226]
[1730047950586,0.003644,67797.0,67793.0,0.147507]
[1730047950794,0.003644,67797.0,67796.0,0.00931226]
[1730047950997,0.003644,67797.0,67792.0,0.04411299]
[1730047951209,0.003644,67797.0,67796.0,0.00931226]
[1730047951423,0.003644,67797.0,67793.0,0.147507]
[1730047951636,0.003644,67797.0,67793.0,0.19162968]
[1730047951853,0.003644,67797.0,67794.0,0.00931381]
[1730047952308,0.003644,67797.0,67794.0,0.20094049]
[1730047953645,0.003644,67797.0,67795.0,0.04412268]
[1730047953838,0.003644,67797.0,67796.0,0.00931226]
[1730047954374,0.003644,67797.0,67796.0,0.05343494]
[1730047955009,0.003644,67797.0,67796.0,0.20093594]
[1730047955578,0.003644,67797.0,67796.0,0.15681326]
[1730047957224,0.003644,67797.0,67796.0,0.07554717]
[1730047957477,0.003644,67797.0,67796.0,0.00931226]
[1730047957707,0.003644,67797.0,67796.0,0.22304817]
[1730047958427,0.003644,67797.0,67796.0,0.38609787]
[1730047958618,0.003644,67797.0,67796.0,0.22304817]
[1730047958873,0.09616379,67797.0,67796.0,0.07554717]
[1730047959094,0.09616379,67797.0,67796.0,0.00931226]
[1730047959806,0.09616379,67797.0,67796.0,0.15681326]
[1730047960274,0.003644,67797.0,67796.0,0.15681326]
[1730047960501,0.003644,67797.0,67796.0,0.22304817]
[1730047960726,0.003644,67797.0,67796.0,0.38615268]
[1730047960954,0.003644,67797.0,67796.0,0.23865168]
[1730047961175,0.003644,67797.0,67796.0,0.38619358]
[1730047961455,0.003644,67797.0,67796.0,0.31991665]
[1730047961672,0.003644,67797.0,67796.0,0.38620025]
[1730047961895,0.003644,67797.0,67796.0,0.23869925]
[1730047962119,0.003644,67797.0,67796.0,0.38620025]
[1730047963529,0.003644,67797.0,67796.0,0.31991665]
[1730047964651,0.003644,67797.0,67796.0,0.17241565]
[1730047965367,0.003644,67797.0,67796.0,0.26078489]
[1730047965598,0.09616379,67797.0,67796.0,0.26078489]
[1730047966737,0.09616379,67797.0,67796.0,0.40828589]
[1730047966958,0.09616379,67797.0,67796.0,0.26078489]
[1730047969553,0.09616379,67797.0,67796.0,0.17253291]
[1730047970924,0.09616379,67797.0,67796.0,0.26098448]
[1730047971831,0.3941666,67797.0,67796.0,0.1725451]
[1730047972736,0.3941666,67797.0,67796.0,0.23887134]
[1730047973460,0.2466676,67797.0,67796.0,0.23887134]
[1730047975638,0.2466676,67797.0,67796.0,0.23885634]
[1730047976546,0.15414781,67797.0,67796.0,0.23885634]
[1730047980441,0.15414781,67797.0,67796.0,0.23886736]
[1730047980679,0.15414781,67797.0,67796.0,0.17253993]
[1730047981817,0.30164681,67797.0,67796.0,0.23887149]
[1730047982329,0.15414781,67797.0,67796.0,0.23887149]
[1730047982564,0.30164681,67797.0,67796.0,0.23887149]
[1730047982824,0.30164681,67797.0,67796.0,0.17253993]
[1730047983042,0.30164681,67797.0,67796.0,0.23887464]
[1730047983512,0.30164681,67797.0,67796.0,0.17253993]
[1730047983985,0.30164681,67797.0,67796.0,0.17256511]
[1730047986319,0.3941666,67797.0,67796.0,0.17256511]
[1730047986541,0.3941666,67797.0,67796.0,0.23891104]
[1730047986754,0.3941666,67797.0,67796.0,0.16325285]
[1730047987000,0.4171666,67797.0,67796.0,0.17258108]
[1730047987438,0.4171666,67797.0,67796.0,0.16325285]
[1730047987665,0.4171666,67797.0,67796.0,0.22960814]
[1730047988579,0.4171666,67797.0,67796.0,0.16325285]
[1730047988996,0.4171666,67797.0,67796.0,0.19281285]
[1730047989258,0.4171666,67797.0,67796.0,0.16325285]
[1730047990687,0.4171666,67797.0,67796.0,0.17258108]
[1730047992559,0.003644,67797.0,67796.0,0.61787563]
[1730047992801,0.003644,67797.0,67796.0,0.39628208]
[1730047993486,0.003644,67797.0,67796.0,0.23302923]
[1730047993689,0.003644,67797.0,67796.0,0.39638311]
[1730048001000,0.001644,67797.0,67796.0,0.39638311]
[1730048001209,0.001644,67797.0,67796.0,0.85118982]
[1730048001428,0.001644,67797.0,67796.0,0.71843238]
[1730048008241,0.001644,67797.0,67796.0,0.71810048]
[1730048008707,0.001644,67797.0,67796.0,0.85075276]
[1730048009626,0.001644,67797.0,67796.0,0.71810048]
[1730048010563,0.001644,67797.0,67796.0,0.62220053]
[1730048010791,0.001644,67797.0,67796.0,0.71810048]
[1730048011041,0.001644,67797.0,67796.0,0.85073158]
[1730048011264,0.001644,67797.0,67796.0,0.48956725]
[1730048011500,0.001644,67797.0,67796.0,0.71810048]
[1730048011732,0.001644,67797.0,67796.0,0.48956725]
[1730048013099,0.001644,67797.0,67796.0,0.4895157]
[1730048015211,0.66972179,67801.0,67800.0,0.147492]
[1730048015424,0.66972179,67801.0,67800.0,0.57409826]
[1730048015645,0.66972179,67801.0,67800.0,0.71599912]
[1730048015864,0.66972179,67801.0,67800.0,0.5833978]
[1730048017274,0.66972179,67801.0,67800.0,0.71595382]
[1730048017983,0.66972179,67801.0,67800.0,0.5833978]
[1730048019176,0.66972179,67801.0,67800.0,0.6129478]
[1730048024920,0.66972179,67801.0,67800.0,0.5833978]
[1730048025844,0.66972179,67801.0,67800.0,0.71595382]
[1730048026492,0.66972179,67801.0,67800.0,0.5833978]
[1730048029077,0.66972179,67801.0,67800.0,0.6129478]
[1730048032498,0.66972179,67801.0,67800.0,0.61279315]
[1730048034608,0.66972179,67801.0,67800.0,0.74528885]
[1730048036694,0.66972179,67801.0,67800.0,0.65276906]
[1730048036917,0.66972179,67801.0,67800.0,0.56056906]
[1730048037164,0.66972179,67801.0,67800.0,0.31982336]
[1730048037417,0.66972179,67801.0,67800.0,0.31990699]
[1730048038857,0.66972179,67801.0,67800.0,0.54826862]
[1730048050529,0.66972179,67801.0,67800.0,0.74475621]
[1730048050759,0.66972179,67801.0,67800.0,0.54876799]
[1730048052121,0.66972179,67801.0,67800.0,0.837276]
[1730048052340,0.66972179,67801.0,67800.0,0.919376]
[1730048055645,0.66972179,67801.0,67800.0,0.72338778]
[1730048063968,0.66972179,67801.0,67800.0,0.33141133]
[1730048064194,0.66972179,67801.0,67800.0,0.72363644]
[1730048065827,0.66972179,67801.0,67800.0,0.33141133]
[1730048066075,0.66972179,67801.0,67800.0,0.72361158]
[1730048067226,0.66972179,67801.0,67800.0,0.8752472]
[1730048069235,0.66972179,67801.0,67800.0,0.9047972]
[1730048069458,0.66972179,67801.0,67800.0,1.05530101]
[1730048069677,0.66972179,67801.0,67800.0,1.15490101]
[1730048069898,0.66972179,67801.0,67800.0,1.15690101]
[1730048070344,0.66972179,67801.0,67800.0,1.25690101]
[1730048071338,0.66972179,67801.0,67800.0,1.25490101]
[1730048071979,0.66972179,67801.0,67800.0,1.58068231]
[1730048072254,0.66972179,67801.0,67800.0,1.25490101]
[1730048073182,0.66972179,67801.0,67800.0,1.40410359]
[1730048074086,0.66972179,67801.0,67800.0,1.25490101]
[1730048074325,0.66972179,67801.0,67800.0,1.40407547]
[1730048076104,0.66972179,67801.0,67800.0,1.25490101]
[1730048076604,0.66972179,67801.0,67800.0,1.25690101]
[1730048077998,0.66972179,67801.0,67800.0,1.25490101]
[1730048078248,0.66972179,67801.0,67800.0,1.40407547]
[1730048078500,0.66972179,67801.0,67800.0,1.25490101]
[1730048079268,0.66972179,67801.0,67800.0,1.25690101]
[1730048079758,0.66972179,67801.0,67800.0,1.25490101]
[1730048087204,0.66972179,67801.0,67800.0,1.25690101]
[1730048087710,0.66972179,67801.0,67800.0,1.25490101]
[1730048087938,0.66972179,67801.0,67800.0,1.25381693]
[1730048088172,0.66972179,67801.0,67800.0,1.25581693]
[1730048089096,0.66972179,67801.0,67800.0,1.25381693]
[1730048089320,0.66972179,67801.0,67800.0,1.25581693]
[1730048089546,0.66972179,67801.0,67800.0,1.25381693]
[1730048089789,0.66972179,67801.0,67800.0,1.25581693]
[1730048091158,0.66972179,67801.0,67800.0,1.25381693]
[1730048091827,0.66972179,67801.0,67800.0,1.25581693]
[1730048092283,0.66972179,67801.0,67800.0,1.25381693]
[1730048095773,0.66972179,67801.0,67800.0,1.25581693]
[1730048098492,0.66972179,67801.0,67800.0,1.25381693]
[1730048100543,0.66972179,67801.0,67800.0,1.25581693]
[1730048101018,0.66972179,67801.0,67800.0,1.25381693]
[1730048101253,0.66972179,67801.0,67800.0,0.96939592]
[1730048101503,0.66972179,67801.0,67800.0,1.06191571]
[1730048101740,0.66972179,67801.0,67800.0,1.1544355]
[1730048101959,0.66972179,67801.0,67800.0,1.1564355]
[1730048104021,0.66972179,67801.0,67800.0,1.1544355]
[1730048104253,0.66972179,67801.0,67800.0,1.1564355]
[1730048104721,0.66972179,67801.0,67800.0,1.1544355]
[1730048105158,0.66972179,67801.0,67800.0,1.1564355]
[1730048105417,0.66972179,67801.0,67800.0,1.1544355]
[1730048105866,0.66972179,67801.0,67800.0,1.1546618]
[1730048107168,0.66972179,67801.0,67800.0,1.30382791]
[1730048107411,0.66972179,67801.0,67800.0,1.30582791]
[1730048107803,0.66972179,67801.0,67800.0,1.30382791]
[1730048109170,0.66972179,67801.0,67800.0,1.1546618]
[1730048110472,0.66972179,67801.0,67800.0,1.1566618]
[1730048110702,0.66972179,67801.0,67800.0,1.06214201]
[1730048110934,0.66972179,67801.0,67800.0,0.98004201]
[1730048111146,0.66972179,67801.0,67800.0,1.30582331]
[1730048112027,0.66972179,67801.0,67800.0,1.21840667]
[1730048112260,0.66972179,67801.0,67800.0,1.06590286]
[1730048112489,0.66972179,67801.0,67800.0,0.83264135]
[1730048114408,0.76142179,67801.0,67800.0,0.83264135]
[1730048122427,0.66972179,67801.0,67800.0,0.83264135]
[1730048125316,0.66972179,67801.0,67800.0,0.83293311]
[1730048127304,0.66972179,67801.0,67800.0,0.83292071]
[1730048130150,0.66972179,67801.0,67800.0,0.83290798]
[1730048132179,0.66972179,67801.0,67800.0,0.74038819]
[1730048132410,0.66972179,67801.0,67800.0,0.83290798]
[1730048133250,0.66972179,67801.0,67800.0,0.73038819]
[1730048133463,0.76382179,67801.0,67800.0,0.74038819]
[1730048134558,0.76382179,67801.0,67800.0,0.73038819]
[1730048134776,0.76382179,67801.0,67800.0,0.74038819]
[1730048134983,0.76382179,67801.0,67800.0,0.74039648]
[1730048137590,0.76382179,67801.0,67800.0,0.83291627]
[1730048138474,0.76382179,67801.0,67800.0,0.82291627]
[1730048138690,0.76382179,67801.0,67800.0,0.63039648]
[1730048140073,0.76382179,67801.0,67800.0,0.59784648]
[1730048140290,0.76382179,67801.0,67800.0,0.74767859]
[1730048140743,0.76382179,67801.0,67800.0,0.55173065]
[1730048147920,0.76382179,67801.0,67800.0,0.65025044]
[1730048149549,0.76382179,67801.0,67800.0,0.6501741]
[1730048150202,0.66972179,67801.0,67800.0,0.6501741]
[1730048152385,0.66972179,67801.0,67800.0,0.18163586]
[1730048152386,0.84513474,67801.0,67800.0,0.18163586]
[1730048152849,0.84513474,67801.0,67800.0,0.29219676]
[1730048153073,0.84513474,67801.0,67800.0,0.18163586]
[1730048153514,0.84513474,67801.0,67800.0,0.2921967]
[1730048154439,0.84513474,67801.0,67800.0,0.29217045]
[1730048154688,0.84513474,67801.0,67800.0,0.181627]
[1730048155592,0.84513474,67801.0,67800.0,0.329119]
[1730048156484,0.84513474,67801.0,67800.0,0.41752145]
[1730048156698,0.84513474,67801.0,67800.0,0.329119]
[1730048157391,0.84513474,67801.0,67800.0,0.43966245]
[1730048157831,0.84513474,67801.0,67800.0,0.329119]
[1730048158265,0.84513474,67801.0,67800.0,0.43966245]
[1730048158473,0.84513474,67801.0,67800.0,0.329119]
[1730048160420,0.66972179,67801.0,67800.0,0.42163879]
[1730048160636,0.66972179,67801.0,67800.0,0.49983879]
[1730048160847,0.66972179,67801.0,67800.0,0.50283879]
[1730048161220,0.66972179,67801.0,67800.0,0.63549093]
[1730048162464,0.66972179,67801.0,67800.0,0.63522977]
[1730048163377,0.66972179,67801.0,67800.0,0.65266805]
[1730048163819,0.66372179,67801.0,67800.0,0.64666805]
[1730048164026,0.66372179,67801.0,67800.0,0.62922977]
[1730048165341,0.66372179,67801.0,67800.0,0.49669472]
[1730048166435,0.66372179,67801.0,67800.0,0.72500706]
[1730048166647,0.66372179,67801.0,67800.0,0.49669472]
[1730048166867,0.66372179,67801.0,67800.0,0.72500706]
[1730048167093,0.66372179,67801.0,67800.0,0.49669472]
[1730048167324,0.66372179,67801.0,67800.0,0.72506408]
[1730048167611,0.66372179,67801.0,67800.0,0.49671848]
[1730048167815,0.66372179,67801.0,67800.0,0.72506408]
[1730048168026,0.66372179,67801.0,67800.0,0.49671848]
[1730048168243,0.66372179,67801.0,67800.0,0.72506408]
[1730048168455,0.66372179,67801.0,67800.0,0.49671848]
[1730048168682,0.66372179,67801.0,67800.0,0.72506408]
[1730048168957,0.66372179,67801.0,67800.0,0.40419869]
[1730048169165,0.66372179,67801.0,67800.0,0.63254429]
[1730048169405,0.66372179,67801.0,67800.0,0.40419869]
[1730048169615,0.66372179,67801.0,67800.0,0.63254429]